bitfinex-derivatives/quotes_SOLF0:USTF0_20260218
["timestamp","ask_amount","ask_price","bid_price","bid_amount"]
[1771384748381,2.00833965,84.68,84.661,6.66732371]
[1771384748580,2.00833965,84.68,84.63,2.00833965]
[1771384748581,2.00833965,84.68,84.631,6.67079322]
[1771384749791,2.00833965,84.68,84.632,6.67079322]
[1771384750686,2.00833965,84.68,84.634,6.70412066]
[1771384754595,2.00833965,84.67,84.634,6.70412066]
[1771384755188,2.00833965,84.66,84.634,6.70412066]
[1771384756490,2.00833965,84.67,84.634,6.70412066]
[1771384757296,2.00833965,84.68,84.634,6.70412066]
[1771384758287,2.00833965,84.69,84.641,6.73093946]
[1771384758798,2.00833965,84.7,84.641,6.73093946]
[1771384759298,2.00833965,84.7,84.644,6.70854585]
[1771384761192,2.00833965,84.7,84.65,6.71100484]
[1771384762397,2.00833965,84.69,84.65,6.71100484]
[1771384762799,2.00833965,84.68,84.65,6.71100484]
[1771384764102,2.00954305,84.68,84.65,6.71100484]
[1771384764802,2.00954305,84.69,84.65,6.71100484]
[1771384766503,2.00954305,84.67,84.639,6.73909807]
[1771384782717,2.00954305,84.66,84.611,6.7293296]
[1771384784024,12.64484305,84.67,84.616,6.72913976]
[1771384784327,12.64484305,84.67,84.621,6.72913976]
[1771384785723,12.64484305,84.67,84.623,6.73327308]
[1771384785925,2.00954305,84.67,84.623,6.73327308]
[1771384786125,2.00954305,84.68,84.631,6.73327308]
[1771384787730,2.00954305,84.68,84.631,17.37337308]
[1771384788028,2.00954305,84.68,84.632,6.73105668]
[1771384788224,2.00954305,84.68,84.641,10.6389]
[1771384788431,2.00954305,84.69,84.642,6.73105668]
[1771384788629,2.00954305,84.7,84.65,2.00954305]
[1771384788929,2.00954305,84.7,84.653,6.73055413]
[1771384789929,2.00954305,84.7,84.657,6.73055413]
[1771384790924,2.00954305,84.7,84.613,74.4]
[1771384790925,2.00954305,84.71,84.661,6.73454485]
[1771384791729,2.00954305,84.71,84.664,6.73454485]
[1771384792930,8.52637113,84.724,84.664,6.73454485]
[1771384793131,2.00954305,84.71,84.664,6.73454485]
[1771384794933,2.00954305,84.72,84.671,6.72963146]
[1771384797937,2.00954305,84.71,84.671,6.72963146]
[1771384799942,8.52637113,84.745,84.671,6.72963146]
[1771384799943,2.00954305,84.73,84.671,6.72963146]
[1771384801942,10.6281,84.728,84.671,6.72963146]
[1771384802144,2.00954305,84.71,84.671,6.72963146]
[1771384803041,2.00954305,84.7,84.671,6.72963146]
[1771384806334,12.63994305,84.71,84.671,6.72963146]
[1771384809844,2.00954305,84.7,84.671,6.72963146]
[1771384811547,12.63994305,84.71,84.671,6.72963146]
[1771384825859,12.63876505,84.71,84.671,6.72963146]
[1771384826958,2.00836505,84.71,84.671,6.72963146]
[1771384828957,8.50090049,84.737,84.681,6.76903927]
[1771384829158,8.50090049,84.739,84.681,6.76903927]
[1771384829462,2.00836505,84.73,84.681,6.76903927]
[1771384830657,2.00836505,84.73,84.681,17.40293927]
[1771384830852,2.00836505,84.73,84.682,6.76903927]
[1771384832162,74.38,84.75,84.662,96.41403667]
[1771384832163,2.00836505,84.74,84.691,6.75771087]
[1771384832962,2.00836505,84.74,84.693,6.75503231]
[1771384835866,2.00836505,84.74,84.695,6.7598911]
[1771384836862,2.00836505,84.75,84.695,6.7598911]
[1771384837064,2.00836505,84.75,84.701,6.75999243]
[1771384837264,2.00836505,84.76,84.701,6.75999243]
[1771384837960,2.00836505,84.76,84.704,6.75999243]
[1771384838560,2.00836505,84.75,84.704,6.75999243]
[1771384839671,2.00836505,84.75,84.709,6.75896571]
[1771384850975,2.00836505,84.76,84.709,6.75896571]
[1771384855583,2.00836505,84.75,84.709,6.75896571]
[1771384857086,2.00836505,84.76,84.711,6.75931192]
[1771384857585,2.00836505,84.76,84.666,11.81]
[1771384857586,10.6222,84.775,84.721,6.75931192]
[1771384860683,10.6232,84.767,84.721,6.75931192]
[1771384860986,2.00836505,84.76,84.721,6.75931192]
[1771384861490,2.00836505,84.75,84.721,6.75931192]
[1771384862090,10.6255,84.748,84.702,6.7449495]
[1771384862789,2.00836505,84.74,84.702,6.7449495]
[1771384865179,2.00836505,84.73,84.68,2.00836505]
[1771384865384,2.00836505,84.73,84.691,6.75644785]
[1771384866485,2.00836505,84.74,84.691,6.75644785]
[1771384866690,2.00836505,84.76,84.711,6.75644785]
[1771384869186,10.6242,84.759,84.711,6.75644785]
[1771384873796,2.00836505,84.75,84.711,6.75644785]
[1771384881998,10.6242,84.759,84.711,6.75644785]
[1771384882204,74.34,84.771,84.711,6.75644785]
[1771384882205,2.00836505,84.74,84.711,6.75644785]
[1771384882394,2.00836505,84.73,84.696,6.76793157]
[1771384883803,2.00836505,84.71,84.673,6.76772086]
[1771384885907,2.00793372,84.72,84.673,6.76772086]
[1771384887004,12.63703372,84.72,84.673,6.76772086]
[1771384887497,2.00793372,84.71,84.673,6.76772086]
[1771384888605,12.63703372,84.72,84.673,6.76772086]
[1771384890098,2.00793372,84.72,84.673,6.76772086]
[1771384894807,2.00793372,84.72,84.674,6.78874292]
[1771384902215,2.00793372,84.73,84.68,2.00793372]
[1771384902421,2.00793372,84.73,84.681,6.79324394]
[1771384903818,2.00793372,84.73,84.684,6.79801919]
[1771384904523,2.00793372,84.74,84.693,6.79801919]
[1771384904721,2.00793372,84.75,84.693,6.79801919]
[1771384905823,2.00793372,84.75,84.701,6.79168514]
[1771384916531,2.00793372,84.74,84.701,6.79168514]
[1771384917437,2.00793372,84.75,84.701,6.79168514]
[1771384921436,10.6243,84.758,84.706,6.8219424]
[1771384921633,10.6232,84.767,84.721,6.8219424]
[1771384929834,2.00793372,84.77,84.721,6.8219424]
[1771384932445,2.00793372,84.77,84.72,2.00793372]
[1771384932446,2.00793372,84.77,84.723,6.80872658]
[1771384933645,2.00793372,84.77,84.728,10.6279]
[1771384933944,2.00793372,84.77,84.729,6.81119167]
[1771384934847,2.00793372,84.78,84.733,6.81119167]
[1771384940750,2.00793372,84.78,84.741,6.83387754]
[1771384941443,10.6208,84.786,84.741,6.83387754]
[1771384941644,2.00793372,84.78,84.741,6.83387754]
[1771384945850,2.00482093,84.78,84.741,6.83387754]
[1771384947248,2.00482093,84.79,84.741,6.83387754]
[1771384949552,2.00482093,84.78,84.741,6.83387754]
[1771384950646,12.62642093,84.78,84.741,6.83387754]
[1771384951049,2.00482093,84.78,84.741,6.83387754]
[1771384951246,2.00482093,84.79,84.741,6.83387754]
[1771384952756,10.6204,84.789,84.741,6.83387754]
[1771384954353,10.6217,84.779,84.741,6.83387754]
[1771384956762,10.6217,84.779,84.73,2.00482093]
[1771384956763,2.00482093,84.77,84.73,6.84585327]
[1771384956962,2.00482093,84.76,84.73,6.84585327]
[1771384957162,2.00482093,84.76,84.711,6.84626158]
[1771384958960,2.00482093,84.75,84.711,6.84626158]
[1771384962768,2.00482093,84.74,84.711,6.84626158]
[1771384966564,10.624,84.76,84.711,6.84626158]
[1771384966771,2.00482093,84.75,84.711,6.84626158]
[1771384972078,2.00482093,84.75,84.713,6.83120534]
[1771384972977,2.00482093,84.76,84.713,6.83120534]
[1771384973676,8.52002218,84.777,84.737,6.8312013]
[1771384973879,2.00482093,84.79,84.741,6.83126494]
[1771384974078,2.00482093,84.8,84.741,6.83126494]
[1771384974378,2.00482093,84.79,84.741,6.83126494]
[1771384976580,2.00482093,84.79,84.744,6.82271347]
[1771384978271,2.00482093,84.8,84.747,6.81262765]
[1771384978478,2.00482093,84.8,84.751,6.81262765]
[1771384978680,2.00482093,84.81,84.761,6.81262765]
[1771384978978,8.5228352,84.845,84.771,6.81480949]
[1771384979175,2.00482093,84.81,84.771,6.81480949]
[1771384982882,2.00482093,84.8,84.771,6.81480949]
[1771385007005,2.00482093,84.81,84.771,6.81480949]
[1771385007908,2.00357427,84.81,84.771,6.81480949]
[1771385012706,10.6179,84.809,84.771,6.81480949]
[1771385015212,2.00357427,84.81,84.771,6.81480949]
[1771385021611,10.6156,84.828,84.771,6.81480949]
[1771385021807,8.54982388,84.827,84.771,6.81480949]
[1771385022016,8.54982388,84.826,84.771,6.81480949]
[1771385022218,8.54982388,84.825,84.771,6.81480949]
[1771385022517,2.00357427,84.82,84.771,6.81480949]
[1771385022717,2.00357427,84.82,84.772,10.6225]
[1771385023019,2.00357427,84.82,84.773,6.87850068]
[1771385024121,2.00357427,84.81,84.773,6.87850068]
[1771385025216,2.00357427,84.82,84.773,6.87850068]
[1771385030936,10.616,84.824,84.773,6.87850068]
[1771385031137,2.00357427,84.82,84.773,6.87850068]
[1771385032239,2.00357427,84.82,84.752,22.03403667]
[1771385032240,2.00357427,84.81,84.753,6.90733838]
[1771385033538,2.00357427,84.81,84.761,6.90678625]
[1771385037043,10.6172,84.815,84.771,6.9122863]
[1771385037344,2.00357427,84.82,84.771,6.9122863]
[1771385038745,2.00357427,84.82,84.772,6.9122863]
[1771385040146,8.54731572,84.819,84.772,6.9122863]
[1771385040446,2.00357427,84.82,84.772,6.9122863]
[1771385042039,2.00357427,84.83,84.781,6.91073927]
[1771385042238,11.0086164,84.849,84.781,6.91073927]
[1771385042438,8.54569969,84.854,84.801,6.91073927]
[1771385042640,2.00357427,84.86,84.801,6.91073927]
[1771385043543,74.3,84.874,84.801,6.91073927]
[1771385043544,2.00357427,84.85,84.801,6.91073927]
[1771385043843,2.00357427,84.85,84.801,74.3]
[1771385044049,2.00357427,84.84,84.802,6.90991893]
[1771385044643,2.00357427,84.83,84.802,6.90991893]
[1771385045051,2.00357427,84.83,84.787,6.9431632]
[1771385046950,2.00357427,84.84,84.787,6.9431632]
[1771385047150,2.00357427,84.84,84.791,6.95723759]
[1771385047545,14.53063333,84.882,84.79,76.28357427]
[1771385047546,2.00357427,84.86,84.81,2.00357427]
[1771385047750,2.00357427,84.86,84.811,6.95723759]
[1771385048253,2.00357427,84.84,84.811,6.95723759]
[1771385048552,2.00357427,84.85,84.811,6.95723759]
[1771385049249,2.00357427,84.84,84.811,6.95723759]
[1771385050048,2.00357427,84.84,84.798,10.6191]
[1771385050049,2.00357427,84.84,84.798,6.95209325]
[1771385050245,2.00357427,84.83,84.798,6.95209325]
[1771385050448,2.00357427,84.84,84.798,6.95209325]
[1771385051551,2.00357427,84.83,84.787,6.94973382]
[1771385051950,2.00357427,84.82,84.787,6.94973382]
[1771385052848,10.6145,84.837,84.787,6.94973382]
[1771385053052,2.00357427,84.83,84.787,6.94973382]
[1771385054857,2.00357427,84.84,84.787,6.94973382]
[1771385056059,2.00357427,84.83,84.787,6.94973382]
[1771385056464,2.00357427,84.84,84.787,6.94973382]
[1771385059060,2.00357427,84.84,84.791,6.90964587]
[1771385062866,2.00357427,84.83,84.791,6.90964587]
[1771385063762,2.00357427,84.83,84.793,6.90451076]
[1771385063967,2.00357427,84.84,84.793,6.90451076]
[1771385065873,2.00357427,84.83,84.793,6.90451076]
[1771385067971,2.00251471,84.83,84.793,6.90451076]
[1771385071675,2.00251471,84.84,84.793,6.90451076]
[1771385072270,10.6141,84.839,84.793,6.90451076]
[1771385072570,2.00251471,84.83,84.793,6.90451076]
[1771385073078,2.00251471,84.82,84.783,6.90568453]
[1771385073266,2.00251471,84.82,84.784,6.90568453]
[1771385075971,10.6143,84.838,84.784,6.90568453]
[1771385076176,10.6143,84.838,84.721,165.3388]
[1771385076177,10.4808547,84.86,84.801,6.90374186]
[1771385076372,2.00251471,84.87,84.82,2.00251471]
[1771385076577,2.00251471,84.87,84.821,6.90374186]
[1771385076775,2.00251471,84.85,84.821,6.90374186]
[1771385077968,10.6119,84.857,84.821,6.90374186]
[1771385081774,2.00251471,84.86,84.821,6.90374186]
[1771385082175,10.6107,84.867,84.821,6.90374186]
[1771385082773,2.00251471,84.87,84.821,6.90374186]
[1771385083379,10.6106,84.868,84.821,6.90374186]
[1771385084581,2.00251471,84.87,84.821,6.90374186]
[1771385085886,2.00251471,84.85,84.821,6.90374186]
[1771385086584,2.00251471,84.86,84.821,6.90374186]
[1771385088685,2.00251471,84.85,84.821,6.90374186]
[1771385090184,10.611,84.864,84.821,6.90374186]
[1771385090386,2.00251471,84.86,84.821,6.90374186]
[1771385091485,10.611,84.864,84.821,6.90374186]
[1771385093881,2.00251471,84.85,84.821,6.90374186]
[1771385100182,10.6117,84.859,84.821,6.90374186]
[1771385100683,2.00251471,84.84,84.803,6.94638023]
[1771385100989,2.00251471,84.85,84.803,6.94638023]
[1771385101788,10.613,84.849,84.803,6.94638023]
[1771385102485,11.0005562,84.877,84.782,10.6212]
[1771385102486,10.6146,84.836,84.782,6.94630478]
[1771385102789,2.00251471,84.83,84.782,6.94630478]
[1771385104584,10.6134,84.845,84.782,6.94630478]
[1771385104891,2.00251471,84.84,84.791,6.95021418]
[1771385106682,10.6143,84.838,84.791,6.95021418]
[1771385114797,2.00251471,84.83,84.791,6.95021418]
[1771385115998,10.6141,84.839,84.791,6.95021418]
[1771385119606,2.00251471,84.83,84.791,6.95021418]
[1771385120905,10.6141,84.839,84.791,6.95021418]
[1771385121299,2.00251471,84.83,84.782,74.26]
[1771385121506,2.00251471,84.82,84.78,6.93875786]
[1771385129914,2.00307963,84.82,84.78,6.93875786]
[1771385140825,10.6157,84.827,84.78,6.93875786]
[1771385144731,2.00307963,84.83,84.781,6.8897003]
[1771385147825,2.00307963,84.83,84.783,6.88877613]
[1771385163361,2.00307963,84.82,84.774,6.88909565]
[1771385163542,35.41,84.871,84.774,6.88909565]
[1771385163543,2.00307963,84.81,84.774,6.88909565]
[1771385163747,11.03882697,84.843,84.774,6.88909565]
[1771385163748,8.52266113,84.833,84.774,6.88909565]
[1771385163946,2.00307963,84.82,84.774,6.88909565]
[1771385164642,10.6168,84.818,84.774,6.88909565]
[1771385165645,2.00307963,84.82,84.774,6.88909565]
[1771385166553,2.00307963,84.82,84.776,6.90939067]
[1771385167648,2.00307963,84.81,84.776,6.90939067]
[1771385173254,2.00307963,84.8,84.765,6.90827067]
[1771385173956,10.6179,84.809,84.765,6.90827067]
[1771385174157,2.00307963,84.81,84.765,6.90827067]
[1771385174357,8.50867696,84.818,84.765,6.90827067]
[1771385174557,2.00307963,84.81,84.765,6.90827067]
[1771385174949,2.00307963,84.82,84.767,10.6231]
[1771385175151,8.50867696,84.829,84.78,2.00307963]
[1771385175349,8.50867696,84.829,84.763,74.3]
[1771385175350,2.00307963,84.83,84.781,6.91529673]
[1771385175559,2.00307963,84.81,84.781,6.91529673]
[1771385175754,2.00307963,84.81,84.764,6.91529673]
[1771385177654,2.00307963,84.8,84.764,6.91529673]
[1771385178662,2.00307963,84.81,84.764,6.91529673]
[1771385183966,2.00307963,84.82,84.764,6.91529673]
[1771385184173,2.00307963,84.83,84.771,6.91479841]
[1771385184471,2.00307963,84.83,84.773,6.91479841]
[1771385184665,2.00307963,84.83,84.776,6.91479841]
[1771385185070,2.00307963,84.83,84.778,6.91092561]
[1771385186477,2.00307963,84.83,84.781,6.91092561]
[1771385191973,2.00263061,84.83,84.781,6.91092561]
[1771385193769,2.00263061,84.82,84.781,6.91092561]
[1771385197275,2.00263061,84.83,84.781,6.91092561]
[1771385197478,19.12179277,84.838,84.781,6.91092561]
[1771385197479,8.50749277,84.838,84.781,6.91092561]
[1771385197682,2.00263061,84.84,84.781,6.91092561]
[1771385197882,2.00263061,84.84,84.783,6.91757626]
[1771385198783,10.6146,84.836,84.783,6.91757626]
[1771385201582,2.00263061,84.84,84.791,6.91598968]
[1771385201880,10.613,84.848,84.791,6.91598968]
[1771385203276,2.00263061,84.84,84.791,6.91598968]
[1771385204584,10.613,84.848,84.791,6.91598968]
[1771385206085,10.613,84.848,84.793,6.91453411]
[1771385208084,2.00263061,84.85,84.797,6.91731776]
[1771385208280,2.00263061,84.85,84.801,6.91731776]
[1771385211892,2.00263061,84.86,84.811,6.92567244]
[1771385212086,10.6106,84.867,84.811,6.92567244]
[1771385212289,10.6106,84.867,84.812,6.92567244]
[1771385212487,254.89589325,84.87,84.821,6.92567244]
[1771385218595,252.89326264,84.87,84.821,6.92567244]
[1771385218798,254.89589325,84.87,84.821,6.92567244]
[1771385222398,329.15589325,84.87,84.822,6.90879459]
[1771385222696,10.6104,84.869,84.822,6.90879459]
[1771385227994,12.61413061,84.86,84.822,6.90879459]
[1771385228692,12.61413061,84.86,84.814,74.26]
[1771385228693,86.87413061,84.86,84.814,74.26]
[1771385228896,86.87413061,84.86,84.814,81.13507197]
[1771385229198,12.61413061,84.86,84.814,6.87507197]
[1771385229398,10.6121,84.855,84.814,6.87507197]
[1771385229893,2.00263061,84.86,84.814,10.6171]
[1771385230095,8.50785173,84.911,84.83,2.00263061]
[1771385230297,21.2038,84.937,84.831,6.89499053]
[1771385230298,2.00263061,84.89,84.831,6.89499053]
[1771385230499,74.26,84.889,84.831,6.89499053]
[1771385230698,2.00263061,84.89,84.831,6.89499053]
[1771385230998,74.26,84.889,84.833,6.89499053]
[1771385231193,74.26,84.889,84.794,35.41]
[1771385231194,11.03882697,84.93,84.851,6.89682502]
[1771385231397,11.03882697,84.93,84.85,2.00263061]
[1771385231398,2.00263061,84.91,84.853,6.89682502]
[1771385232095,11.03882697,84.948,84.87,2.00263061]
[1771385232295,2.00263061,84.92,84.871,6.89682502]
[1771385232495,2.00263061,84.91,84.871,6.89682502]
[1771385232796,2.00263061,84.9,84.858,6.89682502]
[1771385233193,74.26,84.905,84.858,6.89682502]
[1771385233503,2.00263061,84.9,84.858,6.89682502]
[1771385234495,2.00263061,84.89,84.854,74.26]
[1771385234694,2.00263061,84.89,84.854,81.13872759]
[1771385235096,2.00263061,84.9,84.855,6.95937773]
[1771385237402,2.00263061,84.89,84.841,6.94494468]
[1771385237607,2.00263061,84.89,84.843,6.94494468]
[1771385238105,10.6079,84.889,84.843,6.94494468]
[1771385240899,2.00263061,84.89,84.843,6.94494468]
[1771385241203,74.24,84.9,84.851,6.94425813]
[1771385242404,76.24263061,84.9,84.851,6.94425813]
[1771385245808,74.24,84.9,84.854,6.94547684]
[1771385246009,76.24263061,84.9,84.854,6.94547684]
[1771385246410,2.00263061,84.9,84.854,6.94547684]
[1771385246712,2.00263061,84.9,84.856,6.94547684]
[1771385247905,2.00263061,84.9,84.858,6.94388427]
[1771385250814,2.00263061,84.9,84.86,6.94385689]
[1771385251713,2.00263061,84.9,84.863,6.94464419]
[1771385252016,1.99905831,84.9,84.863,6.94464419]
[1771385255208,1.99905831,84.91,84.867,6.93910259]
[1771385255409,1.99905831,84.91,84.869,6.93910259]
[1771385257209,10.6027,84.931,84.872,6.93918343]
[1771385257410,1.99905831,84.92,84.874,6.93918343]
[1771385258418,1.99905831,84.93,84.874,6.93918343]
[1771385258616,1.99905831,84.93,84.881,6.93918343]
[1771385258819,1.99905831,84.93,84.883,6.93918343]
[1771385259518,1.99905831,84.9,84.86,6.96445916]
[1771385259721,1.99905831,84.9,84.862,6.96445916]
[1771385260721,1.99905831,84.91,84.862,6.96445916]
[1771385261421,1.99905831,84.91,84.864,6.97589805]
[1771385262230,1.99905831,84.92,84.866,6.97589805]
[1771385262726,10.6031,84.928,84.866,6.97589805]
[1771385262727,1.99905831,84.91,84.866,6.97589805]
[1771385264126,12.60565831,84.9,84.842,6.96889061]
[1771385264323,12.60565831,84.9,84.844,6.96889061]
[1771385264527,12.60565831,84.9,84.846,6.96889061]
[1771385265329,12.60565831,84.9,84.85,1.99905831]
[1771385265529,12.60565831,84.9,84.851,6.99704268]
[1771385266630,12.60565831,84.9,84.852,6.99704268]
[1771385270022,1.99905831,84.89,84.852,6.99704268]
[1771385274132,1.99905831,84.9,84.852,6.99704268]
[1771385274334,1.99905831,84.91,84.861,7.00494789]
[1771385274533,1.99905831,84.91,84.86,1.99905831]
[1771385274534,1.99905831,84.91,84.863,7.00494789]
[1771385277228,1.99905831,84.91,84.864,7.00371712]
[1771385277435,1.99905831,84.92,84.864,7.00371712]
[1771385278236,1.99905831,84.92,84.866,7.00371712]
[1771385278943,1.99905831,84.92,84.867,7.00371712]
[1771385280834,1.99905831,84.92,84.871,7.00404243]
[1771385281040,1.99905831,84.93,84.881,7.00397607]
[1771385283545,1.99905831,84.94,84.891,7.00715971]
[1771385283743,8.50135851,84.96,84.9,1.99905831]
[1771385283941,1.99905831,84.95,84.901,7.00715971]
[1771385284141,1.99905831,84.95,84.902,7.00715971]
[1771385284337,1.99905831,84.96,84.911,7.00715971]
[1771385284847,1.99905831,84.95,84.911,7.00715971]
[1771385286945,1.99905831,84.96,84.911,7.00715971]
[1771385288442,1.99905831,84.94,84.909,74.2]
[1771385288643,1.99905831,84.94,84.9,7.00318942]
[1771385291551,1.99905831,84.95,84.901,7.01228835]
[1771385291849,1.99905831,84.95,84.903,7.01228835]
[1771385292251,1.99905831,84.96,84.911,7.01228835]
[1771385293045,1.99905831,84.95,84.911,7.01228835]
[1771385301052,10.5979,84.969,84.911,7.01228835]
[1771385301251,1.99905831,84.96,84.911,7.01228835]
[1771385305651,1.99905831,84.96,84.912,74.18]
[1771385305847,1.99905831,84.95,84.913,81.14926978]
[1771385306156,1.99905831,84.95,84.913,6.96926978]
[1771385306553,10.5995,84.957,84.913,6.96926978]
[1771385306856,1.99905831,84.95,84.913,6.96926978]
[1771385313952,1.99694605,84.95,84.913,6.96926978]
[1771385325762,1.99694605,84.95,84.889,22.03403667]
[1771385325763,8.54338774,84.972,84.927,6.98767138]
[1771385325969,1.99694605,84.98,84.927,6.98767138]
[1771385326163,1.99694605,84.97,84.929,6.98767138]
[1771385327467,1.99694605,84.97,84.931,6.98402293]
[1771385327661,10.5948,84.994,84.941,6.98402293]
[1771385327864,1.99694605,84.98,84.941,6.98402293]
[1771385328562,1.99694605,84.97,84.935,81.16402293]
[1771385328766,1.99694605,84.97,84.936,6.98402293]
[1771385340582,1.99694605,84.98,84.936,6.98402293]
[1771385342085,10.5963,84.982,84.936,6.98402293]
[1771385342488,1.99694605,84.99,84.936,6.98402293]
[1771385343387,1.99694605,84.98,84.938,6.92710738]
[1771385347693,1.99694605,84.99,84.938,6.92710738]
[1771385349499,1.99694605,84.98,84.938,6.92710738]
[1771385351994,1.99694605,84.98,84.939,6.93859264]
[1771385359099,12.59104605,85.0,84.941,6.94047651]
[1771385359904,1.99694605,84.99,84.941,6.94047651]
[1771385364809,10.5956,84.988,84.941,6.94047651]
[1771385365012,1.99694605,84.99,84.941,6.94047651]
[1771385366412,10.5956,84.988,84.941,6.94047651]
[1771385366611,1.99694605,84.98,84.941,6.94047651]
[1771385367009,10.5956,84.988,84.941,6.94047651]
[1771385369309,1.99694605,84.99,84.941,6.94047651]
[1771385373614,10.5943,84.998,84.942,6.9740726]
[1771385373815,1.99694605,84.99,84.944,6.9740726]
[1771385374015,1.99492875,84.99,84.944,6.9740726]
[1771385377917,12.59022875,84.99,84.944,6.9740726]
[1771385378117,11.00137516,85.02,84.93,23.91081621]
[1771385378118,1.99492875,84.98,84.945,82.65172659]
[1771385378318,1.99492875,84.98,84.946,6.97172659]
[1771385379723,10.5955,84.989,84.946,6.97172659]
[1771385381826,1.99492875,84.99,84.946,6.97172659]
[1771385383927,8.49521752,84.989,84.946,6.97172659]
[1771385384125,8.49660308,84.988,84.946,6.97172659]
[1771385384422,1.99492875,84.99,84.946,6.97172659]
[1771385384624,8.49675146,84.989,84.946,6.97172659]
[1771385384824,8.49675146,84.988,84.946,6.97172659]
[1771385385123,1.99492875,84.99,84.946,6.97172659]
[1771385385323,8.49675146,84.989,84.946,6.97172659]
[1771385385526,8.49675146,84.988,84.946,6.97172659]
[1771385385726,1.99492875,84.99,84.946,6.97172659]
[1771385385923,8.49689313,84.989,84.946,6.97172659]
[1771385386123,8.49689313,84.988,84.946,6.97172659]
[1771385386324,1.99492875,84.99,84.946,6.97172659]
[1771385386525,8.49794746,84.989,84.946,6.97172659]
[1771385386825,8.49794746,84.988,84.946,6.97172659]
[1771385387020,1.99492875,84.98,84.946,6.97172659]
[1771385401337,8.49772032,84.986,84.946,6.97172659]
[1771385401538,10.5954,84.989,84.946,6.97172659]
[1771385401741,10.5959,84.985,84.946,6.97172659]
[1771385402150,8.49822118,84.984,84.946,6.97172659]
[1771385402350,8.49822118,84.983,84.946,6.97172659]
[1771385402540,1.99492875,84.97,84.935,6.93389327]
[1771385404051,10.5971,84.975,84.935,6.93389327]
[1771385407646,10.5982,84.967,84.935,6.93389327]
[1771385409754,1.99492875,84.97,84.923,6.95030263]
[1771385410053,1.99492875,84.97,84.92,1.99492875]
[1771385410054,8.4935646,84.969,84.92,1.99492875]
[1771385410251,1.99492875,84.98,84.921,6.95030263]
[1771385410555,8.4935646,84.979,84.93,1.99492875]
[1771385410857,1.99492875,84.99,84.931,6.95030263]
[1771385411648,10.5964,84.981,84.931,6.95030263]
[1771385413157,1.99492875,84.98,84.931,6.95030263]
[1771385414060,1.99492875,84.97,84.931,6.95030263]
[1771385415451,1.99492875,84.96,84.931,6.95030263]
[1771385416460,1.99492875,84.97,84.931,6.95030263]
[1771385417863,10.5982,84.967,84.931,6.95030263]
[1771385418161,74.16,84.997,84.931,6.95030263]
[1771385418162,1.99492875,84.96,84.931,6.95030263]
[1771385418362,1.99492875,84.97,84.931,6.95030263]
[1771385420460,10.5971,84.976,84.931,6.95030263]
[1771385420658,10.5956,84.988,84.941,6.9853976]
[1771385421461,1.99492875,84.98,84.941,6.9853976]
[1771385421763,10.5967,84.979,84.941,6.9853976]
[1771385426073,1.99492875,84.98,84.941,6.9853976]
[1771385429970,1.99492875,84.99,84.941,6.9853976]
[1771385432470,1.99492875,84.98,84.941,6.9853976]
[1771385432774,1.99492875,84.97,84.941,6.9853976]
[1771385435267,1.99492875,84.97,84.919,7.02964827]
[1771385435470,1.99492875,84.97,84.921,7.02964827]
[1771385435874,1.99619341,84.97,84.921,7.02964827]
[1771385440888,1.99619341,84.96,84.921,7.02964827]
[1771385441983,8.49185085,84.974,84.932,10.6024]
[1771385442184,1.99619341,84.99,84.933,7.05304793]
[1771385442484,1.99619341,84.98,84.933,7.05304793]
[1771385442683,1.99619341,84.96,84.922,7.05304793]
[1771385443290,1.99619341,84.97,84.922,7.05304793]
[1771385447998,10.5969,84.977,84.922,7.05304793]
[1771385448698,19.08875085,84.977,84.922,7.05304793]
[1771385448898,10.5969,84.977,84.922,7.05304793]
[1771385450198,1.99619341,84.97,84.922,7.05304793]
[1771385451097,10.5969,84.977,84.922,7.05304793]
[1771385457396,10.5969,84.977,84.925,6.98297129]
[1771385457802,10.5957,84.987,84.931,6.98297129]
[1771385458103,8.49181938,84.986,84.933,6.98297129]
[1771385458404,10.5957,84.987,84.933,6.98297129]
[1771385458704,10.5957,84.987,84.935,6.98297129]
[1771385458900,19.08751938,84.987,84.935,6.98297129]
[1771385459101,10.5957,84.987,84.935,6.98297129]
[1771385459303,12.59019341,85.0,84.941,6.97688009]
[1771385459498,8.49181938,84.999,84.941,6.97688009]
[1771385459699,8.49181938,84.998,84.941,6.97688009]
[1771385459898,8.49181938,84.997,84.941,6.97688009]
[1771385460097,8.49181938,84.996,84.941,6.97688009]
[1771385460302,8.49181938,84.995,84.941,6.97688009]
[1771385460602,8.49181938,84.999,84.951,6.97688009]
[1771385460793,1.99619341,85.0,84.953,6.97688009]
[1771385461401,1.99619341,85.01,84.961,6.98442986]
[1771385463800,1.99619341,85.0,84.961,6.98442986]
[1771385464399,1.99619341,84.99,84.948,6.99666733]
[1771385467402,8.49181938,85.01,84.952,6.97979128]
[1771385467602,14.66560723,85.036,84.947,77.82]
[1771385467603,1.99619341,85.02,84.971,6.97979128]
[1771385468195,1.99619341,85.01,84.971,6.97979128]
[1771385469404,74.14,85.033,84.956,6.97013574]